fUSD/lending_fUSD_20240625
["ID","MTS","AMOUNT","RATE_DAILY","PERIOD"]
[330410254,1719353450869,-500.0,0.00019452,2]
[330410255,1719353450878,-845.91,0.00019452,2]
[330410256,1719353450888,-919.79,0.00019452,2]
[330410257,1719353450897,-500.0,0.00019452,2]
[330410258,1719353450907,-800.3,0.00019452,2]
[330410259,1719353450916,-500.0,0.00019452,2]
[330410260,1719353450927,-500.0,0.00019452,2]
[330410261,1719353450937,-500.0,0.00019452,2]
[330410262,1719353450946,-820.16,0.00019452,2]
[330410263,1719353450956,-514.96,0.00019452,2]
[330410264,1719353450965,-1233.48,0.00019452,2]
[330410265,1719353450975,-500.0,0.00019452,2]
[330410266,1719353450984,-500.0,0.00019452,2]
[330410267,1719353450995,-500.0,0.00019452,2]
[330410268,1719353451005,-500.0,0.00019452,2]
[330410269,1719353451015,-500.0,0.00019452,2]
[330410270,1719353451024,-212.68012966,0.00019452,2]
[330410271,1719353451033,-500.0,0.00019452,2]
[330410272,1719353451042,-500.0,0.00019452,2]
[330410273,1719353451052,-500.0,0.00019452,2]
[330410274,1719353451061,-617.27,0.00019452,2]
[330410275,1719353451070,-781.29,0.00019452,2]
[330410276,1719353451080,-1164.38,0.00019452,2]
[330410277,1719353451090,-526.88,0.00019452,2]
[330410278,1719353451100,-500.0,0.00019452,2]
[330410279,1719353451110,-500.0,0.00019452,2]
[330410280,1719353451119,-500.0,0.00019452,2]
[330410281,1719353451128,-500.0,0.00019452,2]
[330410282,1719353451139,-500.0,0.00019452,2]
[330410283,1719353451150,-500.0,0.00019452,2]
[330410284,1719353451159,-500.0,0.00019452,2]
[330410285,1719353451169,-535.7,0.00019452,2]
[330410286,1719353451181,-500.0,0.00019452,2]
[330410287,1719353451190,-608.68,0.00019452,2]
[330410288,1719353451200,-500.0,0.00019452,2]
[330410289,1719353451209,-847.23,0.00019452,2]
[330410290,1719353451218,-500.0,0.00019452,2]
[330410291,1719353451227,-551.76,0.00019452,2]
[330410292,1719353451238,-500.0,0.00019452,2]
[330410293,1719353451250,-1705.97,0.00019452,2]
[330410294,1719353451259,-500.0,0.00019452,2]
[330410295,1719353451269,-717.36,0.00019452,2]
[330410296,1719353451279,-500.0,0.00019452,2]
[330410297,1719353451289,-1204.59,0.00019452,2]
[330410298,1719353451299,-500.0,0.00019452,2]
[330410299,1719353451309,-500.0,0.00019452,2]
[330410300,1719353451319,-763.59,0.00019452,2]
[330410301,1719353451329,-849.4,0.00019452,2]
[330410302,1719353451339,-553.38,0.00019452,2]
[330410303,1719353451349,-500.0,0.00019452,2]
[330410304,1719353451360,-652.01,0.00019452,2]
[330410305,1719353451369,-1073.18,0.00019452,2]
[330410306,1719353451378,-1475.72,0.00019452,2]
[330410307,1719353451388,-500.0,0.00019452,2]
[330410308,1719353451397,-593.46,0.00019452,2]
[330410309,1719353451406,-500.0,0.00019452,2]
[330410310,1719353451416,-500.0,0.00019452,2]
[330410311,1719353451425,-500.0,0.00019452,2]
[330410312,1719353451434,-500.0,0.00019452,2]
[330410313,1719353451444,-1894.37,0.00019452,2]
[330410314,1719353451453,-589.59,0.00019452,2]
[330410315,1719353451463,-500.0,0.00019452,2]
[330410316,1719353451474,-500.0,0.00019452,2]
[330410317,1719353451483,-500.0,0.00019452,2]
[330410318,1719353451492,-500.0,0.00019452,2]
[330410319,1719353451502,-699.58,0.00019452,2]
[330410320,1719353451511,-500.0,0.00019452,2]
[330410321,1719353451521,-539.13,0.00019452,2]
[330410322,1719353451530,-639.85,0.00019452,2]
[330410323,1719353451540,-500.0,0.00019452,2]
[330410324,1719353451549,-841.0,0.00019452,2]
[330410325,1719353451558,-1373.12,0.00019452,2]
[330410326,1719353451568,-500.0,0.00019452,2]
[330410327,1719353451577,-549.9,0.00019452,2]
[330410328,1719353451587,-500.0,0.00019452,2]
[330410329,1719353451597,-802.37,0.00019452,2]
[330410330,1719353451606,-500.0,0.00019452,2]
[330410331,1719353451616,-719.65,0.00019452,2]
[330410332,1719353451625,-901.94,0.00019452,2]
[330410333,1719353451634,-500.0,0.00019452,2]
[330410334,1719353451643,-500.0,0.00019452,2]
[330410335,1719353451652,-1427.26,0.00019452,2]
[330410336,1719353451662,-500.0,0.00019452,2]
[330410337,1719353451671,-500.0,0.00019452,2]
[330410338,1719353451680,-500.0,0.00019452,2]
[330410339,1719353451689,-500.0,0.00019452,2]
[330410340,1719353451699,-500.0,0.00019452,2]
[330410341,1719353451709,-500.0,0.00019452,2]
[330410342,1719353451718,-500.0,0.00019452,2]
[330410343,1719353451728,-500.0,0.00019452,2]
[330410344,1719353451738,-500.0,0.00019452,2]
[330410345,1719353451747,-500.0,0.00019452,2]
[330410346,1719353451756,-500.0,0.00019452,2]
[330410347,1719353451766,-500.0,0.00019452,2]
[330410348,1719353451775,-522.59,0.00019452,2]
[330410349,1719353451784,-500.0,0.00019452,2]
[330410350,1719353451794,-2118.73,0.00019452,2]
[330410351,1719353451803,-713.79,0.00019452,2]
[330410352,1719353451812,-968.65,0.00019452,2]
[330410353,1719353451821,-500.0,0.00019452,2]
[330410354,1719353451831,-500.0,0.00019452,2]
[330410355,1719353451840,-1858.43,0.00019452,2]
[330410356,1719353451850,-722.57,0.00019452,2]
[330410357,1719353451859,-500.0,0.00019452,2]
[330410358,1719353451869,-500.0,0.00019452,2]
[330410359,1719353451878,-500.0,0.00019452,2]
[330410360,1719353451887,-1426.9,0.00019452,2]
[330410361,1719353451896,-1196.55,0.00019452,2]
[330410362,1719353451906,-212.33085333,0.00019452,2]
[330410363,1719353451915,-500.0,0.00019452,2]
[330410364,1719353451924,-500.0,0.00019452,2]
[330410365,1719353451934,-500.0,0.00019452,2]
[330410366,1719353451943,-652.13,0.00019452,2]
[330410367,1719353451953,-500.0,0.00019452,2]
[330410368,1719353451962,-500.0,0.00019452,2]
[330410369,1719353451972,-500.0,0.00019452,2]
[330410370,1719353451981,-496.4852129,0.00019452,2]
[330410371,1719353451990,-620.86352279,0.00019452,2]
[330410372,1719353451999,-1074.95,0.00019452,2]
[330410373,1719353452009,-500.0,0.00019452,2]
[330410374,1719353452018,-500.0,0.00019452,2]
[330410375,1719353452027,-500.0,0.00019452,2]
[330410376,1719353452038,-500.0,0.00019452,2]
[330410377,1719353452049,-500.0,0.00019452,2]
[330410378,1719353452059,-500.0,0.00019452,2]
[330410379,1719353452068,-2124.76,0.00019452,2]
[330410380,1719353452078,-500.0,0.00019452,2]
[330410381,1719353452087,-500.0,0.00019452,2]
[330410382,1719353452100,-500.0,0.00019452,2]
[330410383,1719353452109,-735.72,0.00019452,2]
[330410384,1719353452119,-1178.16,0.00019452,2]
[330410385,1719353452129,-1380.29,0.00019452,2]
[330410386,1719353452139,-500.0,0.00019452,2]
[330410387,1719353452150,-603.16,0.00019452,2]
[330410388,1719353452160,-500.0,0.00019452,2]
[330410389,1719353452169,-836.51,0.00019452,2]
[330410390,1719353452179,-861.21,0.00019452,2]
[330410391,1719353452188,-500.0,0.00019452,2]
[330410392,1719353452197,-500.0,0.00019452,2]
[330410393,1719353452207,-1314.64,0.00019452,2]
[330410394,1719353452216,-577.41,0.00019452,2]
[330410395,1719353452226,-1400.58,0.00019452,2]
[330410396,1719353452236,-500.0,0.00019452,2]
[330410397,1719353452250,-828.52,0.00019452,2]
[330410398,1719353452260,-500.0,0.00019452,2]
[330410399,1719353452270,-2291.94,0.00019452,2]
[330410400,1719353452279,-500.0,0.00019452,2]
[330410401,1719353452288,-500.0,0.00019452,2]
[330410402,1719353452298,-676.81,0.00019452,2]
[330410403,1719353452309,-503.84,0.00019452,2]
[330410404,1719353452320,-181.28893841,0.00019452,2]
[330410405,1719353452332,-1025.84,0.00019452,2]
[330410406,1719353452342,-625.48,0.00019452,2]
[330410407,1719353452351,-500.0,0.00019452,2]
[330410408,1719353452363,-179.22584984,0.00019452,2]
[330410409,1719353452373,-1613.13,0.00019452,2]
[330410410,1719353452382,-500.0,0.00019452,2]
[330410411,1719353452391,-500.0,0.00019452,2]
[330410412,1719353452400,-500.0,0.00019452,2]
[330410413,1719353452410,-939.73,0.00019452,2]
[330410414,1719353452419,-1489.91,0.00019452,2]
[330410415,1719353452427,-654.6,0.00019452,2]
[330410416,1719353452437,-1167.1,0.00019452,2]
[330410417,1719353452446,-803.46,0.00019452,2]
[330410418,1719353452455,-678.38,0.00019452,2]
[330410419,1719353452465,-500.0,0.00019452,2]
[330410420,1719353452476,-500.0,0.00019452,2]
[330410421,1719353452487,-921.09,0.00019452,2]
[330410422,1719353452496,-1167.54,0.00019452,2]
[330410423,1719353452509,-862.65,0.00019452,2]
[330410424,1719353452519,-500.0,0.00019452,2]
[330410425,1719353452529,-278.63581914,0.00019452,2]
[330410426,1719353452538,-500.0,0.00019452,2]
[330410427,1719353452547,-500.0,0.00019452,2]
[330410428,1719353452557,-500.0,0.00019452,2]
[330410429,1719353452566,-500.0,0.00019452,2]
[330410430,1719353452575,-596.98602334,0.00019452,2]
[330410431,1719353452584,-831.05,0.00019452,2]
[330410432,1719353452594,-500.0,0.00019452,2]
[330410433,1719353452603,-500.0,0.00019452,2]
[330410434,1719353452613,-500.0,0.00019452,2]
[330410435,1719353452622,-500.0,0.00019452,2]
[330410436,1719353452631,-938.34,0.00019452,2]
[330410437,1719353452640,-500.0,0.00019452,2]
[330410438,1719353452650,-500.0,0.00019452,2]
[330410439,1719353452659,-500.0,0.00019452,2]
[330410440,1719353452837,-500.0,0.00019452,2]
[330410441,1719353452846,-937.75,0.00019452,2]
[330410442,1719353452856,-500.0,0.00019452,2]
[330410443,1719353452865,-500.0,0.00019452,2]
[330410444,1719353452874,-500.0,0.00019452,2]
[330410445,1719353452883,-500.0,0.00019452,2]
[330410446,1719353452894,-1145.41,0.00019452,2]
[330410447,1719353452903,-2028.09,0.00019452,2]
[330410448,1719353452914,-1097.71,0.00019452,2]
[330410449,1719353452923,-15647.95,0.00019452,2]
[330410450,1719353452932,-190.83,0.00019452,2]
[330410451,1719353452942,-500.0,0.00019452,2]
[330410452,1719353452952,-397.88061945,0.00019452,2]
[330410453,1719353452963,-500.0,0.00019452,2]
[330410454,1719353452972,-1348.16,0.00019452,2]
[330410455,1719353452981,-961.42,0.00019452,2]
[330410456,1719353452990,-500.0,0.00019452,2]
[330410457,1719353452999,-500.0,0.00019452,2]
[330410458,1719353453009,-500.0,0.00019452,2]
[330410459,1719353453019,-627.54,0.00019452,2]
[330410460,1719353453028,-500.0,0.00019452,2]
[330410461,1719353453038,-21392.01,0.00019452,2]
[330410462,1719353453047,-500.0,0.00019452,2]
[330410463,1719353453057,-500.0,0.00019452,2]
[330410464,1719353453066,-694.78,0.00019452,2]
[330410465,1719353453076,-500.0,0.00019452,2]
[330410466,1719353453085,-688.89,0.00019452,2]
[330410467,1719353453095,-500.0,0.00019452,2]
[330410468,1719353453106,-947.15,0.00019452,2]
[330410469,1719353453115,-1592.52,0.00019452,2]
[330410470,1719353453126,-500.0,0.00019452,2]
[330410471,1719353453135,-500.0,0.00019452,2]
[330410472,1719353453146,-17089.32,0.00019452,2]
[330410473,1719353453156,-500.0,0.00019452,2]
[330410474,1719353453166,-500.0,0.00019452,2]
[330410475,1719353453175,-928.07,0.00019452,2]
[330410476,1719353453184,-500.0,0.00019452,2]
[330410477,1719353453194,-677.15,0.00019452,2]
[330410478,1719353453206,-1755.54,0.00019452,2]
[330410479,1719353453216,-500.0,0.00019452,2]
[330410480,1719353453226,-500.0,0.00019452,2]
[330410481,1719353453236,-516.42,0.00019452,2]
[330410482,1719353453250,-500.0,0.00019452,2]
[330410483,1719353453262,-617.42,0.00019452,2]
[330410484,1719353453271,-500.0,0.00019452,2]
[330410485,1719353453282,-500.0,0.00019452,2]
[330410486,1719353453291,-1321.51,0.00019452,2]
[330410487,1719353453300,-500.0,0.00019452,2]
[330410488,1719353453310,-500.0,0.00019452,2]
[330410489,1719353453322,-500.0,0.00019452,2]
[330410490,1719353453332,-1275.39,0.00019452,2]
[330410491,1719353453341,-4884.38,0.00019452,2]
[330410492,1719353453351,-500.0,0.00019452,2]
[330410493,1719353453361,-543.92,0.00019452,2]
[330410494,1719353453370,-500.0,0.00019452,2]
[330410495,1719353453382,-500.0,0.00019452,2]
[330410496,1719353453391,-500.0,0.00019452,2]
[330410497,1719353453401,-500.0,0.00019452,2]
[330410498,1719353453411,-500.0,0.00019452,2]
[330410499,1719353453420,-1045.96,0.00019452,2]
[330410500,1719353453429,-563.15,0.00019452,2]
[330410501,1719353453439,-500.0,0.00019452,2]
[330410502,1719353453447,-500.0,0.00019452,2]
[330410503,1719353453456,-500.0,0.00019452,2]
[330410504,1719353453466,-500.0,0.00019452,2]
[330410505,1719353453477,-604.83,0.00019452,2]
[330410506,1719353453486,-1002.29,0.00019452,2]
[330410507,1719353453495,-752.27,0.00019452,2]
[330410508,1719353453505,-500.0,0.00019452,2]
[330410509,1719353453515,-500.0,0.00019452,2]
[330410510,1719353453524,-2228.78,0.00019452,2]
[330410511,1719353453533,-500.0,0.00019452,2]
[330410512,1719353453543,-1298.69,0.00019452,2]
[330410513,1719353453552,-500.0,0.00019452,2]
[330410514,1719353453561,-763.27,0.00019452,2]
[330410515,1719353453571,-500.0,0.00019452,2]
[330410516,1719353453581,-615.7,0.00019452,2]
[330410517,1719353453590,-500.0,0.00019452,2]
[330410518,1719353453599,-511.11,0.00019452,2]
[330410519,1719353453610,-500.0,0.00019452,2]
[330410520,1719353453620,-619.56,0.00019452,2]
[330410521,1719353453630,-1276.85,0.00019452,2]
[330410522,1719353453641,-500.0,0.00019452,2]
[330410523,1719353453650,-1108.9,0.00019452,2]
[330410524,1719353453661,-665.93,0.00019452,2]
[330410525,1719353453670,-500.0,0.00019452,2]
[330410526,1719353453681,-669.94,0.00019452,2]
[330410527,1719353453691,-502.6,0.00019452,2]
[330410528,1719353453701,-500.0,0.00019452,2]
[330410529,1719353453711,-4074.54,0.00019452,2]
[330410530,1719353453720,-500.0,0.00019452,2]
[330410531,1719353453730,-500.0,0.00019452,2]
[330410532,1719353453740,-500.0,0.00019452,2]
[330410533,1719353453750,-696.51,0.00019452,2]
[330410534,1719353453760,-5336.22,0.00019452,2]
[330410535,1719353453770,-550.26,0.00019452,2]
[330410536,1719353453779,-3122.83,0.00019452,2]
[330410537,1719353453789,-500.0,0.00019452,2]
[330410538,1719353453798,-957.89,0.00019452,2]
[330410539,1719353453809,-500.0,0.00019452,2]
[330410540,1719353453818,-500.0,0.00019452,2]
[330410541,1719353453828,-8226.86,0.00019452,2]
[330410542,1719353453838,-500.0,0.00019452,2]
[330410543,1719353453847,-872.18,0.00019452,2]
[330410544,1719353453857,-500.0,0.00019452,2]
[330410545,1719353453866,-500.0,0.00019452,2]
[330410546,1719353453875,-579.37,0.00019452,2]
[330410547,1719353453885,-862.52,0.00019452,2]
[330410548,1719353453895,-639.87,0.00019452,2]
[330410549,1719353453904,-4492.3,0.00019452,2]
[330410550,1719353453915,-500.0,0.00019452,2]
[330410551,1719353453925,-500.0,0.00019452,2]
[330410552,1719353453936,-641.23,0.00019452,2]
[330410553,1719353453946,-654.79,0.00019452,2]
[330410554,1719353453955,-500.0,0.00019452,2]
[330410555,1719353453966,-822.13,0.00019452,2]
[330410556,1719353453976,-585.95,0.00019452,2]
[330410557,1719353453985,-1513.53,0.00019452,2]
[330410558,1719353453995,-999.15,0.00019452,2]
[330410559,1719353454004,-2376.43,0.00019452,2]
[330410560,1719353454013,-500.0,0.00019452,2]
[330410561,1719353454023,-16067.0,0.00019452,2]
[330410562,1719353454032,-2326.4,0.00019452,2]
[330410563,1719353454041,-500.0,0.00019452,2]
[330410564,1719353454051,-662.99,0.00019452,2]
[330410565,1719353454060,-500.0,0.00019452,2]
[330410566,1719353454070,-633.34,0.00019452,2]
[330410567,1719353454079,-500.0,0.00019452,2]
[330410568,1719353454088,-500.0,0.00019452,2]
[330410569,1719353454100,-722.98,0.00019452,2]
[330410570,1719353454110,-500.0,0.00019452,2]
[330410571,1719353454119,-1763.46,0.00019452,2]
[330410572,1719353454129,-500.0,0.00019452,2]
[330410573,1719353454138,-800.85,0.00019452,2]
[330410574,1719353454148,-961.45,0.00019452,2]
[330410575,1719353454157,-1851.38,0.00019452,2]
[330410576,1719353454167,-573.73,0.00019452,2]
[330410577,1719353454176,-500.0,0.00019452,2]
[330410578,1719353454186,-2941.66,0.00019452,2]
[330410579,1719353454196,-1290.56,0.00019452,2]
[330410580,1719353454206,-500.0,0.00019452,2]
[330410581,1719353454216,-512.29,0.00019452,2]
[330410582,1719353454227,-1143.8,0.00019452,2]
[330410583,1719353454238,-3334.1,0.00019452,2]
[330410584,1719353454249,-830.24,0.00019452,2]
[330410585,1719353454259,-500.0,0.00019452,2]
[330410586,1719353454268,-4435.93,0.00019452,2]
[330410587,1719353454279,-874.38,0.00019452,2]
[330410588,1719353454288,-1921.55,0.00019452,2]
[330410589,1719353454299,-500.0,0.00019452,2]
[330410590,1719353454308,-1300.39,0.00019452,2]
[330410591,1719353454319,-500.0,0.00019452,2]
[330410592,1719353454329,-870.56,0.00019452,2]
[330410593,1719353454339,-500.0,0.00019452,2]
[330410594,1719353454348,-945.04,0.00019452,2]
[330410595,1719353454358,-500.0,0.00019452,2]
[330410596,1719353454368,-500.0,0.00019452,2]
[330410597,1719353454377,-500.0,0.00019452,2]
[330410598,1719353454387,-4795.74,0.00019452,2]
[330410599,1719353454397,-500.0,0.00019452,2]
[330410600,1719353454406,-500.0,0.00019452,2]
[330410601,1719353454416,-1103.9,0.00019452,2]
[330410602,1719353454425,-901.46,0.00019452,2]
[330410603,1719353454435,-500.0,0.00019452,2]
[330410604,1719353454444,-500.0,0.00019452,2]
[330410605,1719353454454,-1459.16,0.00019452,2]
[330410606,1719353454463,-500.0,0.00019452,2]
[330410607,1719353454472,-565.09,0.00019452,2]
[330410608,1719353454482,-3605.88,0.00019452,2]
[330410609,1719353454493,-500.0,0.00019452,2]
[330410610,1719353454502,-333.35515919,0.00019452,2]
[330410611,1719353454512,-1081.43,0.00019452,2]
[330410612,1719353454522,-500.0,0.00019452,2]
[330410613,1719353454531,-647.5,0.00019452,2]
[330410614,1719353454540,-2801.22,0.00019452,2]
[330410615,1719353454549,-500.0,0.00019452,2]
[330410616,1719353454559,-704.17,0.00019452,2]
[330410617,1719353454568,-1277.88,0.00019452,2]
[330410618,1719353454578,-500.0,0.00019452,2]
[330410619,1719353454587,-500.0,0.00019452,2]
[330410620,1719353454596,-500.0,0.00019452,2]
[330410621,1719353454606,-500.0,0.00019452,2]
[330410622,1719353454616,-351.30498188,0.00019452,2]
[330410623,1719353454625,-500.0,0.00019452,2]
[330410624,1719353454634,-675.45,0.00019452,2]
[330410625,1719353454643,-500.0,0.00019452,2]
[330410626,1719353454653,-500.0,0.00019452,2]
[330410627,1719353454663,-849.59,0.00019452,2]
[330410628,1719353454672,-937.37,0.00019452,2]
[330410629,1719353454682,-500.0,0.00019452,2]
[330410630,1719353454691,-2029.16,0.00019452,2]
[330410631,1719353454701,-822.33,0.00019452,2]
[330410632,1719353454711,-500.0,0.00019452,2]
[330410633,1719353454720,-543.19,0.00019452,2]
[330410634,1719353454731,-1692.04,0.00019452,2]
[330410635,1719353454741,-531.55,0.00019452,2]
[330410636,1719353454751,-759.76,0.00019452,2]
[330410637,1719353454761,-500.0,0.00019452,2]
[330410638,1719353454771,-500.0,0.00019452,2]
[330410639,1719353454781,-1706.98,0.00019452,2]
[330410640,1719353454790,-1258.52,0.00019452,2]
[330410641,1719353454800,-500.0,0.00019452,2]
[330410642,1719353454810,-1221.46,0.00019452,2]
[330410643,1719353454820,-500.0,0.00019452,2]
[330410644,1719353454830,-17603.95,0.00019452,2]
[330410645,1719353454839,-1982.89,0.00019452,2]
[330410646,1719353454848,-877.16,0.00019452,2]
[330410647,1719353454858,-9331.76,0.00019452,2]
[330410648,1719353454867,-500.0,0.00019452,2]
[330410649,1719353454877,-536.54,0.00019452,2]
[330410650,1719353454887,-974.81,0.00019452,2]
[330410651,1719353454896,-925.83,0.00019452,2]
[330410652,1719353454905,-560.09,0.00019452,2]
[330410653,1719353454914,-551.55,0.00019452,2]
[330410654,1719353454924,-685.08,0.00019452,2]
[330410655,1719353454934,-500.0,0.00019452,2]
[330410656,1719353454943,-3466.13,0.00019452,2]
[330410657,1719353454952,-4832.03,0.00019452,2]
[330410658,1719353454962,-540.27,0.00019452,2]
[330410659,1719353454972,-1928.39,0.00019452,2]
[330410660,1719353454983,-1123.24,0.00019452,2]
[330410661,1719353454993,-940.08,0.00019452,2]
[330410662,1719353455002,-1735.63,0.00019452,2]
[330410663,1719353455327,-500.0,0.00019452,2]
[330410664,1719353455343,-1401.27,0.00019452,2]
[330410665,1719353455353,-500.0,0.00019452,2]
[330410666,1719353455362,-508.47,0.00019452,2]
[330410667,1719353455371,-1120.54,0.00019452,2]
[330410668,1719353455381,-1200.1,0.00019452,2]
[330410669,1719353455391,-6546.2,0.00019452,2]
[330410670,1719353455400,-15110.72,0.00019452,2]
[330410671,1719353455409,-500.0,0.00019452,2]
[330410672,1719353455418,-884.29,0.00019452,2]
[330410673,1719353455427,-936.45,0.00019452,2]
[330410674,1719353455436,-1706.67,0.00019452,2]
[330410675,1719353455446,-500.0,0.00019452,2]
[330410676,1719353455455,-567.04,0.00019452,2]
[330410677,1719353455464,-500.0,0.00019452,2]
[330410678,1719353455474,-650.61,0.00019452,2]
[330410679,1719353455487,-563.18,0.00019452,2]
[330410680,1719353455497,-736.96,0.00019452,2]
[330410681,1719353455507,-4133.39,0.00019452,2]
[330410682,1719353455521,-4702.97,0.00019452,2]
[330410683,1719353455531,-1810.29,0.00019452,2]
[330410684,1719353455540,-10070.43,0.00019452,2]
[330410685,1719353455549,-648.77,0.00019452,2]
[330410686,1719353455559,-789.9,0.00019452,2]
[330410687,1719353455568,-1000.0,0.00019567,2]
[330410688,1719353455578,-1000.0,0.00019568,2]
[330410689,1719353455587,-500.0,0.00019568,2]
[330410690,1719353455597,-181.04155216,0.00019626,2]
[330410691,1719353455607,-5225.06745227,0.00019674,2]
[330410692,1719353455616,-490.0,0.000197,2]
[330410693,1719353455625,-27007.1749636,0.00019717,2]
[330410694,1719353455635,-2290.8276258,0.00019717,2]
[330410695,1719353455645,-209.38100041,0.00019725,2]
[330410696,1719353455655,-5907.85263176,0.00019725,2]
[330410697,1719353455664,-500.0,0.00019726,2]
[330410698,1719353455674,-3049.73,0.00019726,2]
[330410699,1719353455684,-1326.61,0.00019726,2]
[330410700,1719353455693,-2150.13,0.00019726,2]
[330410701,1719353455703,-831.49,0.00019726,2]
[330410702,1719353455712,-500.0,0.00019726,2]
[330410703,1719353455722,-7133.34,0.00019726,2]
[330410704,1719353455734,-500.0,0.00019726,2]
[330410705,1719353455744,-500.0,0.00019726,2]
[330410706,1719353455753,-565.97625693,0.00019726,2]
[330410707,1719353455763,-500.0,0.00019726,2]
[330410708,1719353455772,-500.0,0.00019726,2]
[330410709,1719353455781,-500.0,0.00019726,2]
[330410710,1719353455791,-500.0,0.00019726,2]
[330410711,1719353455801,-500.0,0.00019726,2]
[330410712,1719353455811,-3326.56,0.00019726,2]
[330410713,1719353455821,-500.0,0.00019726,2]
[330410714,1719353455831,-500.0,0.00019726,2]
[330410715,1719353455840,-500.0,0.00019726,2]
[330410716,1719353455850,-500.0,0.00019726,2]
[330410717,1719353455859,-500.0,0.00019726,2]
[330410718,1719353455869,-500.9,0.00019726,2]
[330410719,1719353455879,-500.0,0.00019726,2]
[330410720,1719353455889,-500.0,0.00019726,2]
[330410721,1719353455898,-500.0,0.00019726,2]
[330410722,1719353455909,-500.0,0.00019726,2]
[330410723,1719353455918,-500.0,0.00019726,2]
[330410724,1719353455928,-500.0,0.00019726,2]
[330410725,1719353455938,-500.0,0.00019726,2]
[330410726,1719353455948,-500.0,0.00019726,2]
[330410727,1719353455957,-500.0,0.00019726,2]
[330410728,1719353455967,-500.0,0.00019726,2]
[330410729,1719353455977,-593.46,0.00019726,2]
[330410730,1719353455988,-901.1,0.00019726,2]
[330410731,1719353455997,-500.0,0.00019726,2]
[330410732,1719353456007,-630.35805249,0.00019726,2]
[330410733,1719353456017,-500.0,0.00019726,2]
[330410734,1719353456027,-500.0,0.00019726,2]
[330410735,1719353456036,-500.0,0.00019726,2]
[330410736,1719353456047,-500.0,0.00019726,2]
[330410737,1719353456056,-500.0,0.00019726,2]
[330410738,1719353456066,-500.0,0.00019726,2]
[330410739,1719353456076,-500.0,0.00019726,2]
[330410740,1719353456087,-500.0,0.00019726,2]
[330410741,1719353456098,-404.19414411,0.00019726,2]
[330410742,1719353456108,-597.96,0.00019726,2]
[330410743,1719353456118,-500.0,0.00019726,2]
[330410744,1719353456127,-500.0,0.00019726,2]
[330410745,1719353456137,-500.0,0.00019726,2]
[330410746,1719353456146,-500.0,0.00019726,2]
[330410747,1719353456155,-2164.47,0.00019726,2]
[330410748,1719353456165,-500.0,0.00019726,2]
[330410749,1719353456174,-658.64,0.00019726,2]
[330410750,1719353456184,-500.0,0.00019726,2]
[330410751,1719353456193,-1211.81,0.00019726,2]
[330410752,1719353456202,-500.0,0.00019726,2]
[330410753,1719353456211,-500.0,0.00019726,2]